[Event "Szansa Chess Open 2022"]
[Site "Warsaw"]
[Date "2022.09.18"]
[Round "7"]
[White "Niezhentsev, Kyrylo"]
[Black "Kutowski, Marcel"]
[Result "1-0"]
[ECO "A20"]
[WhiteElo "2009"]
[BlackElo "2046"]
[Annotator "TA"]
[PlyCount "61"]
[EventDate "2022.09.17"]
[EventCountry "POL"]
[SourceTitle "playchess.com"]
[Source "ChessBase"]
[SourceQuality "1"]
[TimeControl "900+10"]

{[%evp 12,61,0,0,18,11,16,8,5,0,13,0,21,-85,-23,-23,-22,-29,-8,-25,3,0,8,15,142,141,136,139,139,138,126,134,187,187,206,214,239,233,292,265,240,241,268,218,428,427,417,421,406,361,29987,29985]} 1. c4 {[%emt 0:00:01]} e5 {[%emt 0:00:01]} 2. g3 {[%emt 0:00:01]} Nc6 {[%emt 0:00:03]} 3. Bg2 {[%emt 0:00:02]} g6 {[%emt 0:00:02]} 4. Nf3 {[%emt 0:00:08]} Bg7 {[%emt 0:00:02]} 5. Nc3 {[%emt 0:00:01]} f5 {[%emt 0:00:04]} 6. d3 {[%emt 0:00:07]} d6 {[%emt 0:00:07]} 7. O-O {[%emt 0:00:08]} h6 {[%emt 0:00:02] A26: English Opening vs King's Indian with ...Nc6 and d3.} 8. e3 {[%emt 0:00:17]} Nf6 {[%emt 0:00:17]} 9. a3 {[%emt 0:00:39]} a5 {[%emt 0:00:02] [#] The position is equal.} 10. d4 $146 {[%emt 0:00:36]} ({Predecessor:} 10. Rb1 Be6 11. Re1 O-O 12. d4 Bd7 13. d5 Ne7 14. e4 g5 15. exf5 Bxf5 16. Ra1 {0-1 (34) Hickl,N (985)-Lenz,J (1083) LSS email 2013}) 10... e4 {[%emt 0:00:12]} 11. Ne1 {[%emt 0:00:01]} O-O {[%emt 0:00:28][%cal Oa5a4]} 12. Nc2 {[%emt 0:00:16]} (12. f3 $11) 12... Qe7 {[%emt 0:01:00]} (12... a4 $1 $17) 13. Bd2 {[%emt 0:00:10]} a4 {[%emt 0:01:32]} 14. Nb4 {[%emt 0:00:02]} Na5 {[%emt 0:03:08]} 15. Qxa4 {[%emt 0:00:37]} Be6 {[%emt 0:00:43]} 16. Ncd5 {[%emt 0:02:43]} Qf7 {[%emt 0:01:14]} 17. Nxf6+ {[%emt 0:00:24]} Qxf6 {[%emt 0:01:15]} (17... Bxf6 $11 18. d5 Bd7) 18. Nd5 $36 {[%emt 0:01:42][%mdl 2048] Keeping Black busy.} Qf7 {[%emt 0:01:33]} 19. Bxa5 {[%emt 0:00:35]} b6 {[%emt 0:00:45]} 20. b4 {[%emt 0:01:57][%cal Bb2b4,Bb4b5][%mdl 32]} bxa5 {[%emt 0:00:41] [#]} 21. b5 {[%emt 0:00:27] White is more active.} ({Much less strong is} 21. bxa5 c5 $14) 21... Bxd5 {[%emt 0:03:13]} (21... Ra7 $16 {was necessary.} 22. f3 Bxd5 23. cxd5 exf3 24. Bxf3 Re8) 22. cxd5 $18 {[%emt 0:00:01]} Qxd5 {[%emt 0:00:02]} 23. Rfc1 {[%emt 0:00:01]} Qf7 {[%emt 0:00:02] [#]} 24. Rc6 $1 {[%emt 0:00:29]} Rfd8 {[%emt 0:01:10]} 25. Rac1 {[%emt 0:00:26]} Rd7 {[%emt 0:00:02]} 26. Bf1 {[%emt 0:00:57]} Kh7 {[%emt 0:01:11]} 27. Ra6 {[%emt 0:00:21]} Rxa6 {[%emt 0:00:22]} (27... Rf8 28. Ra7 (28. Rxa5 g5 $18) (28. Qxa5 f4 $18) 28... f4) 28. bxa6 {[%emt 0:00:02]} c5 {[%emt 0:00:06]} 29. dxc5 {[%emt 0:01:15]} dxc5 {[%emt 0:00:02]} 30. Bc4 {[%emt 0:00:01]} Qf6 {[%emt 0:00:22]} (30... Qe7 $18 31. Rb1 Ra7 32. Qxa5 Be5) 31. Qxd7 {[%emt 0:00:08] Weighted Error Value: White=0.15 (very precise) /Black=0.61} 1-0

[Event "Szansa Chess Open 2022"]
[Site "Warsaw"]
[Date "2022.09.18"]
[Round "7"]
[White "Czarnecka, Lidia"]
[Black "Stepinski, Piotr"]
[Result "1-0"]
[ECO "B28"]
[WhiteElo "1957"]
[BlackElo "1663"]
[Annotator "TA"]
[PlyCount "116"]
[EventDate "2022.09.17"]
[EventCountry "POL"]
[SourceTitle "playchess.com"]
[Source "ChessBase"]
[SourceQuality "1"]
[TimeControl "900+10"]

{[%evp 12,116,47,45,52,52,88,48,71,62,79,50,47,37,44,41,106,31,30,33,89,77,84,87,145,141,152,77,77,77,79,72,67,39,62,57,64,11,87,85,81,79,79,77,101,99,222,61,90,0,216,41,73,5,7,1,99,0,0,0,60,64,65,62,70,12,74,41,47,48,120,130,237,247,241,244,238,215,253,202,202,194,286,283,570,568,551,512,734,733,722,693,686,680,670,656,618,593,537,401,1171,961,29982,29983,29983,29984,29984]} 1. e4 {[%emt 0:00:10]} c5 {[%emt 0:00:05]} 2. Nf3 {[%emt 0:00:00]} a6 {[%emt 0:00:17]} 3. c4 {[%emt 0:00:00]} e6 {[%emt 0:00:02]} 4. d4 {[%emt 0:00:01]} cxd4 {[%emt 0:00:02]} 5. Nxd4 {[%emt 0:00:01]} Nc6 {[%emt 0:00:00]} 6. Be3 {[%emt 0:00:29]} Qc7 {[%emt 0:00:31]} 7. Nc3 {[%emt 0:00:10]} Bb4 {[%emt 0:00:06] B41: Sicilian: Kan Variation: 5 c4.} 8. Qb3 {[%emt 0:00:16] [#]} Nge7 $146 {[%emt 0:05:34]} ({Predecessor:} 8... Nf6 9. Nxc6 Bxc3+ 10. Qxc3 bxc6 11. f3 O-O 12. e5 Ne8 13. Bc5 d6 14. exd6 Nxd6 {1-0 (32) Subelj,J (1964)-Olsen,W (1584) Porec 2015}) 9. a3 {[%emt 0:00:47]} Bxc3+ {[%emt 0:00:11] White is slightly better.} 10. Qxc3 {[%emt 0:00:06] And now Nxc6 would win.} e5 {[%emt 0:00:58]} 11. Nf3 {[%emt 0:00:53]} O-O {[%emt 0:00:28]} 12. Bd3 {[%emt 0:00:03]} d6 {[%emt 0:00:12]} 13. O-O {[%emt 0:00:03]} f5 {[%emt 0:01:49]} (13... h6 $14) 14. exf5 {[%emt 0:00:40]} (14. c5 $16) 14... Bxf5 $14 {[%emt 0:00:06] ...e4 is the strong threat.} 15. Ng5 {[%emt 0:00:10] Against e4} Qd7 {[%emt 0:02:00]} ({Better is} 15... h6 $14 16. Bxf5 Rxf5) 16. Rad1 $16 {[%emt 0:01:17]} h6 {[%emt 0:01:14]} 17. Ne4 {[%emt 0:00:09][%cal Oe4d6]} Bxe4 {[%emt 0:00:31]} (17... Bg6 $142) 18. Bxe4 {[%emt 0:00:02]} Nf5 {[%emt 0:01:17]} 19. Bxf5 {[%emt 0:00:25]} (19. Qd3 $142) 19... Rxf5 {[%emt 0:00:13]} 20. Rd2 {[%emt 0:00:06]} Rf6 {[%emt 0:00:29]} 21. Rfd1 {[%emt 0:00:01]} Qc7 {[%emt 0:00:33]} 22. b4 {[%emt 0:01:21]} (22. c5 {keeps more tension.} Rd8 23. b4 dxc5 24. Qc4+) 22... Rc8 {[%emt 0:00:27]} 23. Qb3 {[%emt 0:00:20]} (23. c5 {seems wilder.} Nd4 24. Bxd4 exd4 25. Qc4+) 23... Kh8 {[%emt 0:00:07]} 24. c5 {[%emt 0:00:14]} ({White should play} 24. f3 $14) 24... Rd8 {[%emt 0:00:55]} (24... Nd4 $1 $11 25. Bxd4 exd4) 25. h3 $36 {[%emt 0:00:43][%mdl 2048] Black is under strong pressure.} dxc5 {[%emt 0:00:25]} 26. Rxd8+ {[%emt 0:00:54]} ({Don't play} 26. bxc5 Nd4 27. Qb1 Rdf8 $11) 26... Nxd8 {[%emt 0:00:02]} 27. Bxc5 {[%emt 0:00:02] White is much more active.} b6 {[%emt 0:00:21]} 28. Be3 {[%emt 0:00:06]} Rd6 {[%emt 0:00:10] [#] Against Qd3} (28... b5 $16) 29. Rc1 $2 {[%emt 0:00:09]} (29. Rxd6 $1 $18 {aiming for Qd5.} Qxd6 30. b5) 29... Rc6 {[%emt 0:00:07]} 30. Rd1 {[%emt 0:00:16]} (30. Rxc6 $16 Nxc6 31. Qd5) 30... Rd6 $1 $18 {[%emt 0:00:01] [#]} 31. Re1 $2 {[%emt 0:00:17]} ({White has to play} 31. Rxd6 $1 $18 Qxd6 32. b5 axb5 33. Qxb5) 31... Ne6 {[%emt 0:00:33]} 32. Qa4 {[%emt 0:00:26]} ({White should try} 32. Qb1 $16) 32... b5 $11 {[%emt 0:00:11]} 33. Qb3 {[%emt 0:00:05]} Nd4 {[%emt 0:00:10]} (33... Qd7 $11) 34. Qb2 {[%emt 0:00:17]} (34. Bxd4 $16 exd4 35. Re8+ Kh7 36. Qg8+ Kg6 37. Re4) 34... Qf7 {[%emt 0:00:21]} 35. Qb1 {[%emt 0:02:27]} Qf5 {[%emt 0:00:20]} (35... Kg8 $11) 36. Qxf5 $14 {[%emt 0:01:15]} Nxf5 {[%emt 0:00:01][%mdl 4096] Endgame KRB-KRN} 37. Ba7 {[%emt 0:00:04]} Re6 {[%emt 0:00:11]} 38. Bc5 {[%emt 0:00:36]} (38. f4 $1 $14) 38... Kg8 {[%emt 0:00:06]} (38... g5 $11) 39. Rd1 {[%emt 0:00:49]} (39. f4 $5) 39... Kf7 {[%emt 0:00:09]} 40. Rd7+ {[%emt 0:00:03]} Ne7 {[%emt 0:00:15] White now steadily converts the win.} (40... Ke8 $14 41. Rc7 g5) 41. Ra7 $16 {[%emt 0:00:09]} e4 {[%emt 0:00:15]} (41... Kf6 $16 {was necessary.}) 42. Kf1 $18 {[%emt 0:00:03] Hoping for Ke2.} Kf6 {[%emt 0:00:10]} 43. Bxe7+ {[%emt 0:00:02]} Rxe7 {[%emt 0:00:01]} 44. Rxa6+ {[%emt 0:00:02] KR-KR} Kf5 {[%emt 0:00:01]} 45. Rb6 {[%emt 0:00:05]} Re5 {[%emt 0:00:01]} 46. Ke2 {[%emt 0:00:03]} h5 {[%emt 0:00:04]} (46... Rd5 {keeps fighting.} 47. Rb7 g5 48. g4+ Kf4) 47. Rd6 {[%emt 0:00:20]} g5 $2 {[%emt 0:00:38]} (47... Re6 {is a better defense.} 48. Rd5+ Re5) 48. Ke3 {[%emt 0:00:12]} Re7 {[%emt 0:00:04]} 49. Rd5+ {[%emt 0:00:14]} Re5 {[%emt 0:00:01]} 50. g4+ {[%emt 0:00:07]} hxg4 {[%emt 0:00:01]} 51. hxg4+ {[%emt 0:00:01]} Ke6 {[%emt 0:00:00]} 52. Rd4 {[%emt 0:00:11]} Rd5 {[%emt 0:00:32]} 53. Kxe4 {[%emt 0:00:34]} Re5+ {[%emt 0:00:01]} 54. Kd3 {[%emt 0:00:24] Threatening mate with Re4.} Kf6 {[%emt 0:00:09]} 55. f4 {[%emt 0:00:12]} gxf4 {[%emt 0:00:15]} (55... Re1 $142 56. fxg5+ Ke5) 56. Rxf4+ {[%emt 0:00:01]} Kg5 {[%emt 0:00:01]} 57. Rf5+ {[%emt 0:00:09]} Rxf5 {[%emt 0:00:01]} 58. gxf5 {[%emt 0:00:01]} Kxf5 {[%emt 0:00:01] Weighted Error Value: White=0.31/Black=0.48} 1-0

[Event "Szansa Chess Open 2022"]
[Site "Warsaw"]
[Date "2022.09.18"]
[Round "7"]
[White "Bartkiewicz, Pawel"]
[Black "Rak, Maciej"]
[Result "0-1"]
[ECO "B28"]
[WhiteElo "1938"]
[BlackElo "1866"]
[Annotator "TA"]
[PlyCount "40"]
[EventDate "2022.09.17"]
[EventCountry "POL"]
[SourceTitle "playchess.com"]
[Source "ChessBase"]
[SourceQuality "1"]
[TimeControl "900+10"]

{[%evp 15,40,11,47,28,28,15,18,18,15,10,57,0,14,22,19,-14,-4,0,0,0,0,0,87,79,70,-850,-827]} 1. e4 {[%emt 0:00:03]} c5 {[%emt 0:00:01]} 2. Nf3 {[%emt 0:00:02]} a6 {[%emt 0:00:01]} 3. c4 {[%emt 0:00:07]} e6 {[%emt 0:00:07]} 4. d4 {[%emt 0:00:01]} cxd4 {[%emt 0:00:02]} 5. Nxd4 {[%emt 0:00:01]} Nf6 {[%emt 0:00:01]} 6. Nc3 {[%emt 0:00:01]} Bb4 {[%emt 0:00:22]} 7. Bd3 {[%emt 0:01:03] The old main line.} Qc7 {[%emt 0:00:26]} 8. O-O {[%emt 0:00:25]} Nc6 {[%emt 0:00:18]} (8... Bxc3 $5 9. bxc3 d6 $11) 9. Nxc6 {[%emt 0:00:24] B41: Sicilian: Kan Variation: 5 c4.} (9. Nc2 $5 {[%cal Rc2b4]}) 9... dxc6 {[%emt 0:00:14]} 10. Qe2 {[%emt 0:00:20]} e5 {[%emt 0:04:56] [#]} 11. Be3 $146 {[%emt 0:00:37] The position is equal.} ({Predecessor:} 11. Bd2 Bc5 12. Kh1 O-O 13. Na4 Bd4 14. c5 Be6 15. Bg5 Qe7 16. f4 Bd7 17. f5 Bxc5 {½-½ (81) Vereb,G (2205)-Farkas,R (2297) Hungary 2016}) 11... Ng4 {[%emt 0:02:06]} 12. Bd2 {[%emt 0:00:23][%cal Oc3d5]} Be6 {[%emt 0:00:57] Inhibits Nd5.} (12... Qe7 $11) 13. f3 {[%emt 0:00:32]} (13. Nd5 $5 cxd5 14. cxd5 (14. Bxb4 dxc4 15. Bc2 O-O-O $11) 14... Bxd2 15. dxe6 $14) 13... Bc5+ {[%emt 0:00:29]} 14. Kh1 {[%emt 0:00:02]} Nf6 {[%emt 0:04:25]} 15. Na4 {[%emt 0:00:01]} Bd4 {[%emt 0:00:09]} 16. c5 {[%emt 0:00:03]} Rd8 {[%emt 0:00:38]} 17. Rfd1 {[%emt 0:01:03]} Qe7 {[%emt 0:00:16]} 18. Ba5 {[%emt 0:01:08]} Nh5 (18... Rd7 $11 {remains equal.}) 19. Bxd8 {[%emt 0:02:08]} Qxd8 {[%emt 0:01:17]} 20. Bc4 $2 {[%emt 0:04:58][%mdl 8192] [#]} (20. g3 $14) 20... Qh4 $1 {[%emt 0:00:37] Weighted Error Value: White=0.67/Black=0.21 (precise)} 0-1

[Event "Szansa Chess Open 2022"]
[Site "Warsaw"]
[Date "2022.09.18"]
[Round "7"]
[White "Omar, Mohamed"]
[Black "Padalka, Artem"]
[Result "0-1"]
[ECO "B20"]
[WhiteElo "1853"]
[BlackElo "2184"]
[Annotator "TA"]
[PlyCount "86"]
[EventDate "2022.09.17"]
[EventCountry "POL"]
[SourceTitle "playchess.com"]
[Source "ChessBase"]
[SourceQuality "1"]
[TimeControl "900+10"]

{[%evp 16,86,-30,-29,88,-17,-8,-19,31,0,15,-52,-56,-125,-119,-125,-21,-20,-16,-16,-16,-23,-10,-173,-181,-252,-250,-243,-228,-220,-69,-65,-55,-118,-107,-114,-102,-100,-102,-163,-153,-169,-148,-156,-148,-179,-171,-166,-166,-356,-364,-351,-358,-382,-379,-348,-314,-639,-642,-666,-657,-644,-638,-642,-576,-850,-791,-935,-928,-858,-827,-29980,-29981]} 1. e4 {[%emt 0:00:26]} c5 {[%emt 0:00:11]} 2. c4 {[%emt 0:00:03]} g6 {[%emt 0:00:21]} 3. Nc3 {[%emt 0:00:01]} Bg7 {[%emt 0:00:01]} 4. Nge2 {[%emt 0:00:02]} Nc6 {[%emt 0:00:02]} 5. g3 {[%emt 0:00:04]} d6 {[%emt 0:00:40]} 6. Bg2 {[%emt 0:00:02]} Nf6 {[%emt 0:01:54]} 7. O-O {[%emt 0:00:09]} O-O {[%emt 0:00:06]} 8. d4 {[%emt 0:01:24]} cxd4 {[%emt 0:03:58]} 9. Nxd4 {[%emt 0:00:05] [#]} Be6 {[%emt 0:01:24] E65: King's Indian: Fianchetto: 6...c5 7 0-0 without d5 by White.} (9... Nxe4 $1 $11 10. Nxc6 Nxc3 11. Nxe7+ Qxe7 12. bxc3 Be6) 10. Nxc6 {[%emt 0:01:04]} (10. Nxe6 $16 fxe6 11. Bh3) 10... bxc6 $11 {[%emt 0:00:02]} 11. Qe2 {[%emt 0:02:04]} Qc8 {[%emt 0:00:38] [#]} (11... Rb8 $11) 12. Rd1 $146 {[%emt 0:01:01]} ({Predecessor:} 12. Bd2 Bh3 13. Rfe1 Bxg2 14. Kxg2 Nd7 15. Nd1 Nc5 16. Bc3 Ne6 17. Bxg7 Kxg7 18. Nc3 {0-1 (46) Nedimovic,L (2217)-Gyorkos,L (2424) Trieste 2005}) 12... Qa6 {[%emt 0:01:07]} 13. Bf1 {[%emt 0:02:00]} ({Better is} 13. b3 $11) 13... Nd7 $15 {[%emt 0:01:31][%cal Bf6d7,Bd7e5,Be5f3][%mdl 32]} ({Much worse is} 13... Bg4 14. f3 Be6 15. Be3 $11) 14. Bd2 {[%emt 0:00:55] [#]} (14. f4 $15) 14... Ne5 $1 $17 {[%emt 0:00:17]} 15. c5 {[%emt 0:01:19]} Qxe2 {[%emt 0:01:01] Black is more active.} (15... Bc4 $17 16. Qe3 Bxf1 17. Rxf1 dxc5) 16. Bxe2 $11 {[%emt 0:00:02]} dxc5 {[%emt 0:00:26]} 17. Na4 {[%emt 0:00:32]} c4 {[%emt 0:01:43]} 18. Nc5 {[%emt 0:00:19] Inhibits Nd3.} Bg4 {[%emt 0:00:16][%cal Be6g4,Bg4f3,Bf3e4,Be4d3][%mdl 32]} 19. Kf1 {[%emt 0:01:23] [#]} (19. Bxg4 $11 Nxg4 20. h3) 19... Nf3 $1 $19 {[%emt 0:00:41] ( -> ...Bh3#)} 20. Bxf3 {[%emt 0:00:27]} (20. Kg2 $142 Nxd2 21. Rxd2) 20... Bxf3 {[%emt 0:00:02]} 21. Rdb1 {[%emt 0:00:25]} Bd4 {[%emt 0:00:15] A strong pair of Bishops.} 22. Be3 {[%emt 0:00:12]} Bxc5 {[%emt 0:00:09]} ({Black should try} 22... Bxe3 $19 23. fxe3 Rfd8) 23. Bxc5 $15 {[%emt 0:00:01]} Bxe4 {[%emt 0:00:01] Hoping for ...c3.} 24. Rd1 {[%emt 0:00:20] Black continues to play with concentration.} (24. Re1 $1 $15 Bd3+ 25. Kg1) 24... Bd3+ {[%emt 0:00:09]} 25. Kg1 {[%emt 0:00:11]} Rfe8 {[%emt 0:00:05]} 26. Rac1 {[%emt 0:00:53]} Rad8 {[%emt 0:00:32]} 27. a3 {[%emt 0:00:19]} (27. b3 $17) 27... a6 {[%emt 0:00:28]} 28. Rd2 {[%emt 0:00:41]} Rd5 {[%emt 0:00:03]} 29. Bb4 {[%emt 0:00:11]} e5 {[%emt 0:00:04]} 30. Rcd1 {[%emt 0:00:17]} Red8 {[%emt 0:00:22][%cal Od3c2]} 31. Bc3 {[%emt 0:00:32]} f6 {[%emt 0:00:18][%cal Od3e2] ...Be2! is the strong threat.} 32. f3 $2 {[%emt 0:00:07] [#]} (32. Re1 {was called for.}) 32... Be2 $1 $19 {[%emt 0:00:13][%mdl 512]} 33. Rxd5 {[%emt 0:00:18]} cxd5 {[%emt 0:00:01][%cal Bc6d5,Bd5d4,Bd4d3][%mdl 4128] Endgame KRB-KRB} (33... Rxd5 $2 {too greedy.} 34. Re1 Bxf3 35. Kf2 $19) 34. Rd2 {[%emt 0:00:13]} Bxf3 {[%emt 0:00:01]} 35. Rf2 {[%emt 0:00:01]} d4 {[%emt 0:00:44]} 36. Ba5 {[%emt 0:00:04]} (36. Rxf3 dxc3 37. Rxc3) 36... Rd5 {[%emt 0:00:03]} 37. Bb6 {[%emt 0:00:35]} e4 {[%emt 0:00:04] White must now prevent ...c3.} 38. Rd2 {[%emt 0:00:05]} d3 {[%emt 0:00:05]} 39. Kf2 {[%emt 0:00:12]} Kf7 {[%emt 0:00:24]} 40. Be3 {[%emt 0:00:24]} g5 {[%emt 0:00:09]} 41. Ke1 {[%emt 0:00:18]} Be2 {[%emt 0:00:18]} 42. Bg1 {[%emt 0:00:39]} Rf5 {[%emt 0:00:15][%csl Ge2][%cal Rf5f1]} 43. Bf2 {[%emt 0:00:03]} e3 {[%emt 0:00:05] Weighted Error Value: White=0.62/Black=0.22 (precise)} 0-1

[Event "Szansa Chess Open 2022"]
[Site "Warsaw"]
[Date "2022.09.18"]
[Round "7"]
[White "Bespalov, Ivan"]
[Black "Rudzinska, Michalina"]
[Result "1/2-1/2"]
[ECO "B13"]
[WhiteElo "1841"]
[BlackElo "2289"]
[Annotator "ChessBase"]
[PlyCount "124"]
[EventDate "2022.09.17"]
[EventCountry "POL"]
[SourceTitle "playchess.com"]
[Source "ChessBase"]
[SourceQuality "1"]
[TimeControl "900+10"]

1. e4 {[%emt 0:00:01]} c6 {[%emt 0:00:02]} 2. d4 {[%emt 0:00:03]} d5 {[%emt 0:00:01]} 3. exd5 {[%emt 0:00:01]} cxd5 {[%emt 0:00:02]} 4. Bd3 {[%emt 0:00:02]} Nf6 {[%emt 0:00:04]} 5. Nf3 {[%emt 0:00:03]} Nc6 {[%emt 0:00:09]} 6. O-O {[%emt 0:00:03]} Bg4 {[%emt 0:00:17]} 7. c3 {[%emt 0:00:03]} e6 {[%emt 0:00:05]} 8. Bg5 {[%emt 0:00:06]} Be7 {[%emt 0:00:14]} 9. Nbd2 {[%emt 0:00:02]} O-O {[%emt 0:00:07]} 10. Re1 {[%emt 0:00:02]} Bh5 {[%emt 0:01:05]} 11. Qc2 {[%emt 0:00:05]} Bg6 {[%emt 0:00:07]} 12. Bxg6 {[%emt 0:00:04]} hxg6 {[%emt 0:00:03]} 13. Ne5 {[%emt 0:00:04]} Rc8 {[%emt 0:00:29]} 14. Ndf3 {[%emt 0:00:05]} Ne4 {[%emt 0:00:18]} 15. Bxe7 {[%emt 0:00:03]} Nxe7 {[%emt 0:00:31]} 16. Nd2 {[%emt 0:00:03]} Nd6 {[%emt 0:01:04]} 17. Qd3 {[%emt 0:00:33]} b5 {[%emt 0:00:44]} 18. Rab1 {[%emt 0:00:29]} Nc4 {[%emt 0:01:18]} 19. Ndxc4 {[%emt 0:00:37]} bxc4 {[%emt 0:00:11]} 20. Qf3 {[%emt 0:00:06]} Nc6 {[%emt 0:00:52]} 21. Ng4 {[%emt 0:01:13]} Qg5 {[%emt 0:00:22]} 22. h3 {[%emt 0:00:24]} Rb8 {[%emt 0:00:11]} 23. Qd1 {[%emt 0:00:35]} Rb6 {[%emt 0:00:28]} 24. Ne3 {[%emt 0:01:24]} Rfb8 {[%emt 0:00:37]} 25. b4 {[%emt 0:00:02]} cxb3 {[%emt 0:00:07]} 26. axb3 {[%emt 0:00:02]} Ne7 {[%emt 0:02:03]} 27. Qc2 {[%emt 0:00:11]} Nf5 {[%emt 0:01:19]} 28. Nxf5 {[%emt 0:00:22]} gxf5 {[%emt 0:00:02]} 29. Qa2 {[%emt 0:00:05]} f4 {[%emt 0:00:26]} 30. f3 {[%emt 0:00:11]} a6 {[%emt 0:00:36]} 31. c4 {[%emt 0:00:33]} Qf6 {[%emt 0:00:38]} 32. cxd5 {[%emt 0:00:06]} Qxd4+ {[%emt 0:00:05]} 33. Qf2 {[%emt 0:01:36]} Qxd5 {[%emt 0:00:13]} 34. Red1 {[%emt 0:00:25]} Qb7 {[%emt 0:00:47]} 35. Rd3 {[%emt 0:00:32]} Qc7 {[%emt 0:00:19]} 36. Qd2 {[%emt 0:00:18]} e5 {[%emt 0:00:39]} 37. Rd7 {[%emt 0:00:17]} Qc5+ {[%emt 0:00:06]} 38. Kh2 {[%emt 0:00:03]} Rc8 {[%emt 0:01:56]} 39. Rd8+ {[%emt 0:00:39]} Rxd8 {[%emt 0:00:08]} 40. Qxd8+ {[%emt 0:00:01]} Kh7 {[%emt 0:00:01]} 41. Rc1 {[%emt 0:00:56]} Qxc1 {[%emt 0:01:27]} 42. Qxb6 {[%emt 0:00:02]} Qc8 {[%emt 0:00:20]} 43. Qd6 {[%emt 0:00:30]} Qe6 {[%emt 0:00:06]} 44. Qd3+ {[%emt 0:00:05]} g6 {[%emt 0:00:08]} 45. Qc2 {[%emt 0:00:06]} Kh6 {[%emt 0:00:15]} 46. Qd3 {[%emt 0:00:15]} Kg7 {[%emt 0:01:00]} 47. b4 {[%emt 0:00:09]} Qb6 {[%emt 0:00:06]} 48. Qc3 {[%emt 0:00:05]} Qb5 {[%emt 0:00:18]} 49. Qc8 {[%emt 0:00:12]} Qb6 {[%emt 0:00:40]} 50. Qc3 {[%emt 0:00:06]} Qb5 {[%emt 0:00:03]} 51. Qc8 {[%emt 0:00:03]} Qxb4 {[%emt 0:00:02]} 52. Qxa6 {[%emt 0:00:01]} Qd4 {[%emt 0:00:09]} 53. Qb7 {[%emt 0:00:10]} Qd6 {[%emt 0:00:20]} 54. Qe4 {[%emt 0:00:07]} f5 {[%emt 0:00:04]} 55. Qb7+ {[%emt 0:00:00]} Kf6 {[%emt 0:00:02]} 56. Qa8 {[%emt 0:00:04]} Qe7 {[%emt 0:00:19]} 57. Qh8+ {[%emt 0:00:04]} Ke6 {[%emt 0:00:09]} 58. Qg8+ {[%emt 0:00:02]} Qf7 {[%emt 0:00:06]} 59. Qc8+ {[%emt 0:00:01]} Kf6 {[%emt 0:00:24]} 60. Qh8+ {[%emt 0:00:02]} Ke6 {[%emt 0:00:06]} 61. Qc8+ {[%emt 0:00:01]} Kd6 {[%emt 0:00:06]} 62. Qb8+ {[%emt 0:00:02]} Ke6 {[%emt 0:00:07]} 1/2-1/2